fUST/lending_fUST_20240928
["ID","MTS","AMOUNT","RATE_DAILY","PERIOD"]
[339383634,1727531248663,-2000.0,0.00026,30]
[339383635,1727531248686,-1200.15861465,0.00026002,2]
[339383636,1727531251139,-1582.92817483,0.00026002,2]
[339383637,1727531252130,-657.74351463,0.00026002,2]
[339383638,1727531346088,-185.9041024,0.00024375,2]
[339383639,1727531346111,-3564.37853854,0.00026002,2]
[339383640,1727531346134,-225.57341,0.00026032,2]
[339383641,1727531346157,-225.57341,0.00026103,2]
[339383642,1727531346181,-225.57341,0.00026173,2]
[339383643,1727531346203,-225.57341,0.00026244,2]
[339383644,1727531346226,-225.57341,0.00026314,2]
[339383645,1727531346249,-225.57341,0.00026385,2]
[339383646,1727531346271,-225.57341,0.00026456,2]
[339383647,1727531346294,-225.57341,0.00026526,2]
[339383648,1727531346315,-500.0,0.0002658,2]
[339383649,1727531346338,-225.57341,0.00026597,2]
[339383650,1727531346359,-300.0,0.00026598,2]
[339383651,1727531346382,-300.0,0.00026598,2]
[339383652,1727531346404,-277.80503538,0.00026598,15]
[339383653,1727531346427,-500.0,0.00026599,2]
[339383654,1727531346449,-500.0,0.00026599,2]
[339383655,1727531346471,-500.0,0.00026599,2]
[339383656,1727531346495,-583.62389721,0.00026599,2]
[339383657,1727531346516,-500.0,0.00026599,2]
[339383658,1727531346611,-500.0,0.00026599,2]
[339383659,1727531346638,-500.0,0.00026599,2]
[339383660,1727531346663,-500.0,0.00026599,2]
[339383661,1727531346686,-500.0,0.00026599,2]
[339383662,1727531346707,-500.0,0.00026599,2]
[339383663,1727531346729,-500.0,0.00026599,2]
[339383664,1727531346751,-500.0,0.00026599,2]
[339383665,1727531346772,-500.0,0.00026599,2]
[339383666,1727531346798,-500.0,0.00026599,2]
[339383667,1727531346820,-500.0,0.00026599,2]
[339383668,1727531346842,-500.0,0.00026599,2]
[339383669,1727531346866,-500.0,0.00026599,2]
[339383670,1727531346887,-500.0,0.00026599,2]
[339383671,1727531346911,-500.0,0.00026599,2]
[339383672,1727531346933,-500.0,0.00026599,2]
[339383673,1727531346955,-500.0,0.00026599,2]
[339383674,1727531346978,-500.0,0.00026599,2]
[339383675,1727531347001,-408.82478469,0.00026599,2]
[339383676,1727531347023,-500.0,0.00026599,2]
[339383677,1727531347046,-500.0,0.00026599,2]
[339383678,1727531347067,-500.0,0.00026599,2]
[339383679,1727531347092,-607.12,0.000266,31]
[339383680,1727531347118,-607.12,0.000266,31]
[339383681,1727531347143,-607.12,0.000266,31]
[339383682,1727531347169,-607.12,0.000266,31]
[339383683,1727531347194,-607.12,0.000266,31]
[339383684,1727531347221,-607.12,0.000266,31]
[339383685,1727531347247,-607.12,0.000266,31]
[339383686,1727531347272,-607.12,0.000266,31]
[339383687,1727531347296,-607.12,0.000266,31]
[339383688,1727531347323,-607.12,0.000266,31]
[339383689,1727531347357,-607.12,0.000266,31]
[339383690,1727531347387,-607.12,0.000266,31]
[339383691,1727531347408,-225.57341,0.00026668,2]
[339383692,1727531347433,-225.57341,0.00026738,2]
[339383693,1727531347456,-225.57341,0.00026809,2]
[339383694,1727531347478,-225.57341,0.00026879,2]
[339383695,1727531347499,-225.57341,0.0002695,2]
[339383696,1727531348146,-1104.38669,0.00027,120]
[339383697,1727531348170,-225.57341,0.00027021,2]
[339383698,1727531348268,-660.0,0.00027075,2]
[339383699,1727531348291,-225.57341,0.00027091,2]
[339383700,1727531348312,-500.0,0.00027373,2]
[339383701,1727531348334,-373.3223388,0.00027373,2]
[339383702,1727531348355,-502.14916811,0.00027373,2]
[339383703,1727531348376,-1336.06,0.00027397,14]
[339383704,1727531348396,-500.0,0.00027397,14]
[339383705,1727531348416,-200.0,0.00027397,14]
[339383706,1727531348436,-536.6146653,0.00027397,14]
[339383707,1727531348459,-605.2368035,0.00027397,14]
[339383708,1727531348480,-500.0,0.00027397,14]
[339383709,1727531348500,-450.1043671,0.00027397,14]
[339383710,1727531348520,-4305.71,0.00027397,14]
[339383711,1727531348541,-1723.16,0.00027397,14]
[339383712,1727531348562,-500.0,0.00027397,14]
[339383713,1727531348584,-503.80236871,0.00027397,14]
[339383714,1727531348604,-504.77009013,0.00027397,14]
[339383715,1727531348624,-506.55115693,0.00027397,14]
[339383716,1727531348645,-500.0,0.00027397,14]
[339383717,1727531348667,-1449.98,0.00027397,14]
[339383718,1727531348689,-500.0,0.00027397,14]
[339383719,1727531348710,-522.0485193,0.00027397,14]
[339383720,1727531348734,-505.47306469,0.00027397,14]
[339383721,1727531348756,-150.34399251,0.00027397,14]
[339383722,1727531348778,-502.53158594,0.00027397,14]
[339383723,1727531348805,-7105.98,0.00027397,14]
[339383724,1727531348827,-495.0,0.00027397,14]
[339383725,1727531348852,-551.79,0.00027397,14]
[339383726,1727531348876,-500.0,0.00027397,14]
[339383727,1727531348897,-509.92699727,0.00027397,14]
[339383728,1727531348919,-204.07891707,0.00027397,14]
[339383729,1727531348941,-500.0,0.00027397,14]
[339383730,1727531348964,-266.22467706,0.00027397,14]
[339383731,1727531348986,-200.0,0.00027397,7]
[339383732,1727531349008,-500.0,0.00027397,14]
[339383733,1727531349031,-500.0,0.00027397,14]
[339383734,1727531349053,-500.0,0.00027397,14]
[339383735,1727531349076,-500.0,0.00027397,14]
[339383736,1727531349101,-500.0,0.00027397,14]
[339383737,1727531349122,-500.0,0.00027397,14]
[339383738,1727531349145,-151.0,0.00027397,7]
[339383739,1727531349168,-151.0,0.00027397,7]
[339383740,1727531349189,-151.0,0.00027397,7]
[339383741,1727531349211,-151.0,0.00027397,7]
[339383742,1727531349234,-500.0,0.00027397,14]
[339383743,1727531349257,-500.0,0.00027397,14]
[339383744,1727531349282,-500.0,0.00027397,14]
[339383745,1727531349307,-500.0,0.00027397,14]
[339383746,1727531349328,-151.0,0.00027397,7]
[339383747,1727531349352,-500.0,0.00027397,14]
[339383748,1727531349373,-151.0,0.00027397,7]
[339383749,1727531349398,-3442.69985578,0.00027397,14]
[339383750,1727531350117,-583.65014422,0.00027397,14]
[339383751,1727531350143,-3831.2,0.00027397,14]
[339383752,1727531350164,-500.0,0.00027397,14]
[339383753,1727531350188,-500.0,0.00027397,14]
[339383754,1727531350212,-770.361099,0.00027397,7]
[339383755,1727531350237,-770.361099,0.00027397,7]
[339383756,1727531350262,-500.0,0.00027397,14]
[339383757,1727531350284,-770.361099,0.00027397,7]
[339383758,1727531350308,-770.361099,0.00027397,7]
[339383759,1727531350334,-306.85138069,0.00027397,14]
[339383760,1727531350360,-819.94,0.00027397,14]
[339383761,1727531350381,-500.0,0.00027397,14]
[339383762,1727531350404,-1130.496607,0.00027397,7]
[339383763,1727531350430,-1130.496607,0.00027397,7]
[339383764,1727531350454,-1130.496607,0.00027397,7]
[339383765,1727531350479,-1130.496607,0.00027397,7]
[339383766,1727531350499,-500.0,0.00027397,14]
[339383767,1727531350522,-159.636616,0.00027397,7]
[339383768,1727531350543,-159.636616,0.00027397,7]
[339383769,1727531350566,-495.47,0.00027631,3]
[339383770,1727531350590,-17648.08693799,0.00027631,3]
[339383771,1727531350631,200.92006328,0.00026,2]
[339383772,1727531361280,-500.0,0.00027397,14]
[339383773,1727531361304,-159.636616,0.00027397,7]
[339383774,1727531361326,-159.636616,0.00027397,7]
[339383775,1727531361351,-1280.39,0.00027397,14]
[339383776,1727531361376,-165.14,0.00027641,3]
[339383777,1727531361399,-42969.44,0.00027641,3]
[339383778,1727531361423,-330.29,0.00027651,3]
[339383779,1727531361447,-151.0,0.00027661,7]
[339383780,1727531361469,-151.0,0.00027661,7]
[339383781,1727531361491,-1321.15,0.00027661,3]
[339383782,1727531361516,-151.0,0.00027661,7]
[339383783,1727531361539,-660.58,0.00027661,3]
[339383784,1727531361562,-770.361099,0.00027661,7]
[339383785,1727531361586,-770.361099,0.00027661,7]
[339383786,1727531361611,-1130.496607,0.00027661,7]
[339383787,1727531361634,-1130.496607,0.00027661,7]
[339383788,1727531361658,-159.636616,0.00027661,7]
[339383789,1727531361681,-159.636616,0.00027661,7]
[339383790,1727531361704,-151.0,0.00027661,7]
[339383791,1727531361727,-521.33868602,0.00027671,14]
[339383792,1727531361749,-200.0,0.00027671,14]
[339383793,1727531361771,-582.43241573,0.00027671,14]
[339383794,1727531361796,-4305.71,0.00027671,14]
[339383795,1727531361817,-1723.16,0.00027671,14]
[339383796,1727531361838,-509.13708894,0.00027671,14]
[339383797,1727531361860,-503.48949662,0.00027671,14]
[339383798,1727531361883,-1449.98,0.00027671,14]
[339383799,1727531361905,-500.0,0.00027671,14]
[339383800,1727531361927,-7105.98,0.00027671,14]
[339383801,1727531361950,-500.0,0.00027671,14]
[339383802,1727531361973,-500.0,0.00027671,14]
[339383803,1727531361995,-200.0,0.00027671,7]
[339383804,1727531362017,-494.03878567,0.00027671,14]
[339383805,1727531362038,-500.0,0.00027671,14]
[339383806,1727531362059,-500.0,0.00027671,14]
[339383807,1727531362080,-500.0,0.00027671,14]
[339383808,1727531362102,-500.0,0.00027671,14]
[339383809,1727531362123,-151.0,0.00027671,7]
[339383810,1727531362217,-151.0,0.00027671,7]
[339383811,1727531362241,-500.0,0.00027671,14]
[339383812,1727531362264,-500.0,0.00027671,14]
[339383813,1727531362285,-500.0,0.00027671,14]
[339383814,1727531362305,-151.0,0.00027671,7]
[339383815,1727531362326,-4026.35,0.00027671,14]
[339383816,1727531362352,-3831.2,0.00027671,14]
[339383817,1727531362373,-368.69,0.00027671,14]
[339383818,1727531362394,-500.0,0.00027671,14]
[339383819,1727531362415,-770.361099,0.00027671,7]
[339383820,1727531362437,-500.0,0.00027671,14]
[339383821,1727531362460,-770.361099,0.00027671,7]
[339383822,1727531362484,-819.94,0.00027671,14]
[339383823,1727531362506,-500.0,0.00027671,14]
[339383824,1727531362527,-1130.496607,0.00027671,7]
[339383825,1727531362548,-1130.496607,0.00027671,7]
[339383826,1727531362570,-500.0,0.00027671,14]
[339383827,1727531362590,-159.636616,0.00027671,7]
[339383828,1727531362613,-500.0,0.00027671,14]
[339383829,1727531362635,-159.636616,0.00027671,7]
[339383830,1727531362658,-1280.39,0.00027671,14]
[339383831,1727531362680,-151.0,0.00027671,7]
[339383832,1727531362702,-2951.40194181,0.00027821,2]
[339383833,1727531362724,-150.112233,0.000279,9]
[339383834,1727531362746,-150.112233,0.000279,8]
[339383835,1727531362768,-151.0,0.00027904,7]
[339383836,1727531362791,-542.34929721,0.00027904,2]
[339383837,1727531362812,-255.66285013,0.00027904,2]
[339383838,1727531362836,-500.0,0.00027904,2]
[339383839,1727531362859,-515.35229904,0.00027904,2]
[339383840,1727531362883,-500.0,0.00027904,2]
[339383841,1727531362906,-500.0,0.00027904,2]
[339383842,1727531362930,-500.0,0.00027904,2]
[339383843,1727531362954,-500.0,0.00027904,2]
[339383844,1727531362976,-500.0,0.00027904,2]
[339383845,1727531362999,-221.58367536,0.00027904,2]
[339383846,1727531363022,-151.0,0.00027905,7]
[339383847,1727531363044,-151.0,0.00027905,7]
[339383848,1727531363066,-111247.315953,0.00027905,4]
[339383849,1727531363091,-90475.148032,0.00027905,4]
[339383850,1727531363114,-111247.315953,0.00027915,4]
[339383851,1727531363136,-90475.148032,0.00027915,4]
[339383852,1727531363158,-151.0,0.00027915,7]
[339383853,1727531363178,-481.56518546,0.00027921,5]
[339383854,1727531363201,-111247.315953,0.00027925,4]
[339383855,1727531363222,-31645.79375013,0.00027925,4]
[339383857,1727531370104,-2023.161196,0.00027397,7]
[339383859,1727531374155,-1879.873919,0.00027397,7]
[339383860,1727531374177,-3903.035115,0.00027397,7]
[339383861,1727531374199,-3903.035115,0.00027397,7]
[339383862,1727531374220,-3903.035115,0.00027397,7]
[339383863,1727531374244,-500.0,0.00027397,14]
[339383864,1727531374267,-487.13203202,0.00027397,14]
[339383865,1727531374290,-3946.9,0.00027397,14]
[339383866,1727531374312,-159.567795,0.00027661,7]
[339383867,1727531374335,-3903.035115,0.00027661,7]
[339383868,1727531374358,-3903.035115,0.00027661,7]
[339383869,1727531374380,-3903.035115,0.00027671,7]
[339383870,1727531374402,-3903.035115,0.00027671,7]
[339383871,1727531374428,-151.0,0.00027915,7]
[339383872,1727531374450,-438.817327,0.00027925,7]
[339383873,1727531374473,-3020.64312005,0.00027925,3]
[339383881,1727531424907,180.67581216,0.00026,14]
[339383911,1727531431968,-477.46748131,0.00027386,3]
[339383913,1727531431980,-310.746,0.00027386,3]
[339383925,1727531432099,-315.53708064,0.00027386,3]
[339383995,1727531438075,-0.96467342,0.00027385,2]
[339383996,1727531438712,-499.03532658,0.00027385,2]
[339383997,1727531438722,-500.0,0.00027385,2]
[339383998,1727531438732,-323.20275386,0.00027385,2]
[339383999,1727531438742,-2497.38787026,0.00027386,3]
[339384000,1727531438992,-1388.44204493,0.00027386,3]
[339384014,1727531446254,-228.68429665,0.00027373,2]
[339384015,1727531446263,-178.96399509,0.00027395,2]
[339384016,1727531446273,-360.74660933,0.00027395,2]
[339384017,1727531446282,-379.64450805,0.00027395,2]
[339384018,1727531446291,-500.0,0.00027395,2]
[339384019,1727531446300,-339.42659651,0.00027395,2]
[339384020,1727531446600,-265.68197624,0.00027395,2]
[339384021,1727531446609,-500.0,0.00027395,2]
[339384022,1727531446619,-500.0,0.00027395,2]
[339384023,1727531446628,-123.60429527,0.00027395,2]
[339384024,1727531451795,272.56377,0.00026256,2]
[339384025,1727531480636,162.151669,0.00026458,2]
[339384026,1727531480819,162.151669,0.00026458,9]
[339384027,1727531481182,162.151669,0.00026458,16]
[339384028,1727531481233,162.151669,0.00026458,24]
[339384029,1727531481447,162.151669,0.00026458,31]
[339384030,1727531481640,162.151669,0.00026458,38]
[339384031,1727531481955,162.151669,0.00026458,46]
[339384032,1727531482106,162.151669,0.00026458,53]
[339384033,1727531482548,162.151669,0.00026458,61]
[339384034,1727531482776,162.151669,0.00026458,68]
[339384035,1727531482982,162.151669,0.00026458,75]
[339384036,1727531483226,162.151669,0.00026458,83]
[339384037,1727531483649,162.151669,0.00026458,90]
[339384038,1727531483905,162.151669,0.00026458,97]
[339384039,1727531484118,162.151669,0.00026458,105]
[339384040,1727531484344,162.151669,0.00026458,112]
[339384041,1727531484571,162.151669,0.00026458,120]
[339384042,1727531594484,3000.0,0.00021,2]
[339384043,1727531594855,3000.0,0.0002101,2]
[339384044,1727531595201,3000.0,0.0002102,2]
[339384045,1727531595576,3000.0,0.0002103,2]
[339384046,1727531596072,4593.778752,0.0002104,2]
[339384048,1727531675167,505.0,0.00023001,2]
[339384052,1727532193366,150.0,0.00021,2]
[339384054,1727532331570,-309.45520821,0.00024756,2]
[339384055,1727532331593,-1698.92695361,0.00024822,2]
[339384056,1727532371194,1104.3867,0.00023,2]
[339384057,1727532454105,-165.226201,0.00024485,2]
[339384058,1727532454131,-250.0,0.00024674,2]
[339384059,1727532454154,-250.0,0.00024742,2]
[339384060,1727532454175,-206.30347214,0.00024756,2]
[339384061,1727532454199,-250.0,0.0002481,2]
[339384062,1727532454221,-2512.79289899,0.00024822,2]
[339384063,1727532454243,-1196.900951,0.00024856,2]
[339384064,1727532454264,-1212.0011445,0.00024856,2]
[339384065,1727532454287,-250.0,0.00024877,2]
[339384066,1727532454311,-250.0,0.00024945,2]
[339384067,1727532454332,-380.0,0.00024953,2]
[339384068,1727532454354,-175.76023,0.00024976,2]
[339384069,1727532454376,-206.30347213,0.00024997,2]
[339384070,1727532454403,-300.0,0.00025011,2]
[339384071,1727532454426,-300.0,0.00025012,2]
[339384072,1727532454447,-250.0,0.00025013,2]
[339384073,1727532454471,-250.0,0.0002508,2]
[339384074,1727532454492,-175.76023,0.000251,2]
[339384075,1727532454514,-250.0,0.00025148,2]
[339384076,1727532454536,-250.0,0.00025216,2]
[339384077,1727532454559,-206.30347213,0.00025238,2]
[339384078,1727532454582,-250.0,0.00025283,2]
[339384079,1727532454603,-660.0,0.00025287,2]
[339384080,1727532454627,-3000.0,0.00025307,2]
[339384081,1727532454649,-347.611563,0.00025338,2]
[339384082,1727532454672,-250.0,0.00025351,2]
[339384083,1727532454692,-161.122616,0.0002539,2]
[339384084,1727532454714,-250.0,0.00025419,2]
[339384085,1727532454735,-250.0,0.00025486,2]
[339384086,1727532454826,-250.0,0.00025492,2]
[339384087,1727532454848,-1196.900951,0.00025541,2]
[339384088,1727532454873,-250.0,0.00025554,2]
[339384089,1727532454898,-250.0,0.00025622,2]
[339384090,1727532454920,-250.0,0.00025689,2]
[339384091,1727532454943,-930.9801721,0.00025728,2]
[339384092,1727532454965,-250.0,0.00025757,2]
[339384093,1727532454987,-250.0,0.00025825,2]
[339384094,1727532455009,-250.0,0.00025892,2]
[339384095,1727532455033,-250.0,0.0002596,2]
[339384096,1727532455054,-1196.900951,0.00026226,2]
[339384097,1727532455075,-500.0,0.00026434,2]
[339384098,1727532455097,-500.0,0.00026434,2]
[339384099,1727532455118,-500.0,0.00026434,2]
[339384100,1727532455144,-500.0,0.00026434,2]
[339384101,1727532455166,-500.0,0.00026434,2]
[339384102,1727532455189,-500.0,0.00026434,2]
[339384103,1727532455213,-568.08558057,0.00026434,2]
[339384104,1727532455236,-500.0,0.00026434,2]
[339384105,1727532455260,-500.0,0.00026434,2]
[339384106,1727532455281,-500.0,0.00026434,2]
[339384107,1727532455305,-500.0,0.00026434,2]
[339384108,1727532455332,-500.0,0.00026434,2]
[339384109,1727532455358,-500.0,0.00026434,2]
[339384110,1727532455380,-500.0,0.00026434,2]
[339384111,1727532455406,-500.0,0.00026434,2]
[339384112,1727532455428,-500.0,0.00026434,2]
[339384113,1727532455452,-500.0,0.00026434,2]
[339384114,1727532455475,-500.0,0.00026434,2]
[339384115,1727532455500,-500.0,0.00026434,2]
[339384116,1727532455522,-204.94535632,0.00026434,2]
[339384117,1727532455545,-500.0,0.00026434,2]
[339384118,1727532455565,-500.0,0.00026434,2]
[339384119,1727532455588,-500.0,0.00026434,2]
[339384120,1727532455609,-500.0,0.00026434,2]
[339384121,1727532455631,-500.0,0.00026434,2]
[339384122,1727532455653,-423.36482251,0.00026434,2]
[339384123,1727532464365,-76.63517749,0.00026434,2]
[339384124,1727532464391,-500.0,0.00026434,2]
[339384125,1727532464415,-500.0,0.00026434,2]
[339384126,1727532464440,-500.0,0.00026434,2]
[339384127,1727532464461,-189.99248629,0.00026434,2]
[339384129,1727532577727,-177.617693,0.00024297,2]
[339384130,1727532577750,-2675.6681804,0.00025458,2]
[339384131,1727532577773,-177.617693,0.00025576,2]
[339384132,1727532577794,-200.0,0.00026,2]
[339384133,1727532577815,-6442.92289828,0.00026378,2]
[339384134,1727532577836,-231.34944855,0.00026435,14]
[339384135,1727532577856,-300.0,0.00026574,2]
[339384136,1727532577877,-300.0,0.00026598,2]
[339384137,1727532577898,-500.0,0.00026599,2]
[339384138,1727532577921,-500.0,0.00026599,2]
[339384139,1727532577942,-549.50129797,0.00026599,2]
[339384140,1727532577967,-500.0,0.00026599,2]
[339384141,1727532577990,-500.0,0.00026599,2]
[339384142,1727532578016,-500.0,0.00026599,2]
[339384143,1727532578041,-500.0,0.00026599,2]
[339384144,1727532578065,-206.80855805,0.00026599,2]
[339384145,1727532578088,-500.0,0.00026599,2]
[339384146,1727532578109,-500.0,0.00026599,2]
[339384147,1727532578132,-500.0,0.00026599,2]
[339384148,1727532578154,-500.0,0.00026599,2]
[339384149,1727532578176,-500.0,0.00026599,2]
[339384150,1727532578196,-500.0,0.00026599,2]
[339384151,1727532578220,-500.0,0.00026599,2]
[339384152,1727532578247,-612.13,0.000266,31]
[339384153,1727532578339,-612.13,0.000266,31]
[339384154,1727532578373,-612.13,0.000266,31]
[339384155,1727532578400,-612.13,0.000266,31]
[339384156,1727532578427,-612.13,0.000266,31]
[339384157,1727532578452,-612.13,0.000266,31]
[339384158,1727532578476,-612.13,0.000266,31]
[339384159,1727532578500,-612.13,0.000266,31]
[339384160,1727532578523,-612.13,0.000266,31]
[339384161,1727532578547,-612.13,0.000266,31]
[339384162,1727532578570,-612.13,0.000266,31]
[339384163,1727532578593,-612.13,0.000266,31]
[339384164,1727532578612,-500.0,0.00026625,2]
[339384165,1727532578631,-566.56446736,0.000267,2]
[339384166,1727532578651,-4311.91908848,0.00026822,2]
[339384167,1727532578672,-6442.92289828,0.00026841,2]
[339384168,1727532578692,-177.617693,0.00026855,2]
[339384169,1727532578713,-6442.92289828,0.00026965,2]
[339384170,1727532587368,1268.57432924,0.00026741,2]
[339384199,1727532638390,-154.2329657,0.00026741,14]
[339384200,1727532638400,-42.05899694,0.00026741,2]
[339384201,1727532638412,-1162.89355783,0.00026741,2]
[339384202,1727532638430,-2943.20231341,0.00026741,2]
[339384203,1727532638507,-1277.06216707,0.00026741,2]
[339384204,1727532638518,-300.0,0.00026999,2]
[339384205,1727532638527,-300.0,0.00026999,2]
[339384206,1727532638536,-8164.68490124,0.00027,2]
[339384207,1727532638545,-1073.63244447,0.00027173,2]
[339384208,1727532638554,-201.0,0.00027185,2]
[339384209,1727532638563,-268.91876664,0.00027189,2]
[339384210,1727532638572,-237.23015563,0.000272,2]
[339384211,1727532638581,-268.91876661,0.00027209,2]
[339384212,1727532638593,-449.94458866,0.00027215,2]
[339384213,1727532638603,-356.31206201,0.00027215,2]
[339384214,1727532638612,-6442.92289828,0.00027216,2]
[339384215,1727532638622,-268.91876661,0.00027228,2]
[339384216,1727532638632,-268.91876661,0.00027248,2]
[339384217,1727532638642,-2951.40194181,0.00027256,2]
[339384218,1727532638651,-164.12032021,0.00027267,7]
[339384219,1727532638661,-164.12032021,0.00027267,7]
[339384220,1727532638670,-164.12032021,0.00027267,7]
[339384221,1727532638680,-164.12032021,0.00027267,7]
[339384222,1727532638690,-164.12032021,0.00027267,7]
[339384223,1727532638700,-164.12032021,0.00027267,7]
[339384224,1727532638710,-164.12032021,0.00027267,7]
[339384225,1727532638720,-164.12032021,0.00027267,7]
[339384226,1727532638730,-164.12032021,0.00027267,7]
[339384227,1727532638740,-164.62,0.00027267,7]
[339384228,1727532638750,-328.31564042,0.00027267,7]
[339384229,1727532638760,-202.2270673,0.00027267,7]
[339384230,1727532639755,-126.08857312,0.00027267,7]
[339384231,1727532639766,-328.31564042,0.00027267,7]
[339384232,1727532639781,-328.31564042,0.00027267,7]
[339384233,1727532639791,-328.31564042,0.00027267,7]
[339384234,1727532639801,-328.31564042,0.00027267,7]
[339384236,1727532639810,-328.31564042,0.00027267,7]
[339384237,1727532639819,-182.21360227,0.00027267,7]
[339384240,1727532639898,-146.10203815,0.00027267,7]
[339384241,1727532639909,-328.31564042,0.00027267,7]
[339384242,1727532639919,-328.31564042,0.00027267,7]
[339384244,1727532639930,-328.31564042,0.00027267,7]
[339384246,1727532639940,-328.31564042,0.00027267,7]
[339384248,1727532639949,-328.31564042,0.00027267,7]
[339384250,1727532639959,-328.31564042,0.00027267,7]
[339384252,1727532639970,-328.31564042,0.00027267,7]
[339384254,1727532639979,-328.31564042,0.00027267,7]
[339384256,1727532639991,-328.31564042,0.00027267,7]
[339384258,1727532640001,-328.31564042,0.00027267,7]
[339384260,1727532640010,-328.31564042,0.00027267,7]
[339384262,1727532640021,-268.91876661,0.00027267,2]
[339384264,1727532640031,-5000.0,0.00027284,2]
[339384266,1727532640041,-998.88,0.0002729,3]
[339384267,1727532640051,-313.37,0.0002729,3]
[339384268,1727532640063,-156.69,0.0002729,3]
[339384269,1727532640072,-328.81,0.00027294,7]
[339384273,1727532640082,-198.13,0.00027294,7]
[339384276,1727532640147,-2000.0,0.000273,2]
[339384278,1727532640158,-2000.0,0.000273,3]
[339384280,1727532640168,-2000.0,0.000273,4]
[339384282,1727532640178,-2000.0,0.000273,5]
[339384284,1727532640188,-2000.0,0.000273,6]
[339384286,1727532640200,-2000.0,0.000273,7]
[339384288,1727532640210,-150.112233,0.000273,9]
[339384289,1727532640219,-150.112233,0.000273,5]
[339384291,1727532640229,-248.384328,0.000273,6]
[339384293,1727532640239,-5000.0,0.000273,2]
[339384296,1727532640249,-626.75,0.00027305,3]
[339384297,1727532640258,-19085.14,0.00027305,3]
[339384298,1727532640278,-27765.56,0.00027306,3]
[339384299,1727532640288,-201.9736516,0.00027315,2]
[339384300,1727532640298,-570.02887975,0.00027315,2]
[339384301,1727532640308,-538.86104351,0.00027315,2]
[339384302,1727532640318,-500.0,0.00027315,2]
[339384303,1727532640328,-500.0,0.00027315,2]
[339384304,1727532640337,-500.0,0.00027315,2]
[339384306,1727532640347,-500.0,0.00027315,2]
[339384307,1727532640356,-500.0,0.00027315,2]
[339384308,1727532640369,-500.0,0.00027315,2]
[339384309,1727532640378,-437.33543872,0.00027315,2]
[339384310,1727532640387,-33318.67,0.00027316,3]
[339384311,1727532640397,-470.07,0.00027316,3]
[339384312,1727532640408,-129427.242902,0.00027326,4]
[339384313,1727532640418,-49928.80381205,0.00027326,4]
[339384314,1727532640431,-34440.29713085,0.00027326,4]
[339384315,1727532640441,-151.0,0.00027326,7]
[339384316,1727532640450,-151.0,0.00027326,7]
[339384317,1727532640459,-151.0,0.00027326,7]
[339384318,1727532640469,-151.0,0.00027326,7]
[339384319,1727532640479,-151.0,0.00027346,7]
[339384320,1727532640488,-151.0,0.00027346,7]
[339384321,1727532640498,-151.0,0.00027346,7]
[339384322,1727532640508,-151.0,0.00027346,7]
[339384323,1727532640521,-151.0,0.00027346,7]
[339384324,1727532640531,-151.0,0.00027346,7]
[339384325,1727532640540,-203.176171,0.00027346,7]
[339384326,1727532640560,-129427.242902,0.00027346,4]
[339384327,1727532640580,-65483.09825985,0.00027346,4]
[339384328,1727532641090,-116.52885631,0.00027346,4]
[339384368,1727532644095,-223.15357353,0.00027346,4]
[339384376,1727532646451,-773.575102,0.000272,2]